bitfinex/quotes_BTCUSD_20250825
["timestamp","ask_amount","ask_price","bid_price","bid_amount"]
[1756158078666,0.83135493,110140.0,110130.0,0.23816]
[1756158078879,5.47332504,110140.0,110130.0,0.23816]
[1756158079096,5.49657116,110140.0,110130.0,0.23816]
[1756158079297,5.49657116,110140.0,110130.0,0.16836]
[1756158079511,5.49657116,110140.0,110130.0,0.0004]
[1756158080354,5.49957116,110140.0,110130.0,0.0004]
[1756158080556,5.58644081,110140.0,110130.0,0.0004]
[1756158080759,5.58444081,110140.0,110130.0,0.0004]
[1756158081171,5.75364081,110140.0,110130.0,0.0004]
[1756158082417,5.7394287,110140.0,110130.0,0.0004]
[1756158082621,5.75364314,110140.0,110130.0,0.0004]
[1756158082834,5.58544314,110140.0,110130.0,0.0004]
[1756158083027,5.78064314,110140.0,110130.0,0.0004]
[1756158083569,5.61276314,110140.0,110130.0,0.0004]
[1756158084317,5.31698642,110140.0,110130.0,0.36717257]
[1756158084531,0.68922842,110140.0,110130.0,0.36717257]
[1756158084738,0.01621444,110140.0,110130.0,0.36717257]
[1756158084929,0.002,110140.0,110130.0,0.67233732]
[1756158085130,0.002,110140.0,110130.0,0.77233732]
[1756158085342,0.64976786,110160.0,110150.0,0.1990196]
[1756158085554,0.64976786,110170.0,110160.0,0.19897108]
[1756158085720,0.64976786,110170.0,110160.0,0.36701108]
[1756158085922,0.23213745,110210.0,110190.0,0.19895369]
[1756158086124,0.03109364,110210.0,110200.0,0.3494882]
[1756158086326,0.18157959,110220.0,110210.0,0.18147173]
[1756158086528,4.83663459,110220.0,110210.0,0.18147173]
[1756158086909,4.64196173,110220.0,110210.0,0.18147173]
[1756158087111,5.94149745,110220.0,110210.0,0.18147173]
[1756158087312,6.30485913,110220.0,110210.0,0.18147173]
[1756158087515,6.30485913,110220.0,110210.0,0.19892075]
[1756158087516,5.96485913,110220.0,110210.0,0.19892075]
[1756158087735,5.96485913,110220.0,110210.0,0.20292075]
[1756158087736,5.31509127,110220.0,110210.0,0.20292075]
[1756158088140,4.66532341,110220.0,110210.0,0.20292075]
[1756158088367,5.31509127,110220.0,110210.0,0.20292075]
[1756158088710,0.68733327,110220.0,110210.0,0.20292075]
[1756158088915,0.68733327,110220.0,110210.0,0.20492075]
[1756158090057,0.68733327,110220.0,110210.0,0.19892075]
[1756158090487,0.68733327,110220.0,110210.0,0.20692075]
[1756158091394,0.68733327,110220.0,110210.0,0.20092075]
[1756158091600,0.68733327,110220.0,110210.0,0.19892075]
[1756158092057,0.68733327,110220.0,110210.0,0.20192075]
[1756158092492,0.02336168,110220.0,110210.0,0.20192075]
[1756158092670,0.67312954,110220.0,110210.0,0.20692075]
[1756158092911,0.64976786,110220.0,110210.0,0.20692075]
[1756158094971,0.67298284,110220.0,110210.0,0.20692075]
[1756158095184,0.67298284,110220.0,110210.0,0.37420075]
[1756158095405,0.67298284,110220.0,110210.0,0.20692075]
[1756158095610,0.67298284,110220.0,110210.0,0.24742482]
[1756158095838,0.68718433,110220.0,110210.0,0.41470482]
[1756158095974,0.68718433,110220.0,110210.0,0.40670482]
[1756158096344,0.68718433,110220.0,110210.0,0.41270482]
[1756158099283,0.70409706,110220.0,110210.0,0.41278482]
[1756158100255,0.70409706,110220.0,110210.0,0.24542482]
[1756158100463,0.70409706,110220.0,110210.0,0.41242482]
[1756158104740,0.0543292,110220.0,110210.0,0.41242482]
[1756158104951,0.70409706,110220.0,110210.0,0.41242482]
[1756158106518,0.0543292,110220.0,110210.0,0.41242482]
[1756158106700,0.70409706,110220.0,110210.0,0.41242482]
[1756158107667,0.64976786,110220.0,110210.0,0.41242482]
[1756158107907,0.52153087,110250.0,110240.0,0.18142235]
[1756158108085,5.17465442,110250.0,110240.0,0.34810235]
[1756158108306,4.99990425,110250.0,110240.0,0.34810235]
[1756158108577,5.01681688,110250.0,110240.0,0.34810235]
[1756158108991,5.66658474,110250.0,110240.0,0.34810235]
[1756158109228,5.84799063,110250.0,110240.0,0.34810235]
[1756158109686,5.86404723,110250.0,110240.0,0.34910235]
[1756158110140,5.86404723,110250.0,110240.0,0.16768]
[1756158110836,5.87924757,110250.0,110240.0,0.16768]
[1756158111289,5.87924757,110250.0,110240.0,0.34910235]
[1756158112440,5.86319097,110250.0,110240.0,0.34910235]
[1756158113142,5.21342311,110250.0,110240.0,0.34910235]
[1756158113365,5.52319097,110250.0,110240.0,0.34910235]
[1756158113810,5.50899063,110250.0,110240.0,0.34910235]
[1756158114506,0.18147173,110210.0,110190.0,0.2603799]
[1756158114734,5.95901406,110200.0,110190.0,0.0698]
[1756158114955,0.8482563,110200.0,110190.0,0.41794467]
[1756158115166,0.8482563,110200.0,110190.0,0.25130467]
[1756158115347,0.8482563,110200.0,110190.0,0.0698]
[1756158115552,0.8482563,110200.0,110190.0,0.23644]
[1756158115821,0.19848844,110200.0,110190.0,0.25388902]
[1756158116025,0.8482563,110200.0,110190.0,0.25488902]
[1756158116414,0.8482563,110200.0,110190.0,0.25588902]
[1756158116645,0.8482563,110200.0,110190.0,0.25788902]
[1756158116889,0.86246119,110200.0,110190.0,0.25788902]
[1756158117317,0.86246119,110200.0,110190.0,0.43939369]
[1756158118115,0.86247808,110200.0,110190.0,0.43939369]
[1756158118527,0.86247808,110200.0,110190.0,0.0738]
[1756158118720,0.88977608,110200.0,110190.0,0.24044]
[1756158118924,0.88977608,110200.0,110190.0,0.0738]
[1756158119122,0.88977608,110200.0,110190.0,0.24044]
[1756158119408,0.88977608,110200.0,110190.0,0.23844]
[1756158119604,0.88977608,110200.0,110190.0,0.23644]
[1756158120019,0.88977608,110200.0,110190.0,0.23744]
[1756158120228,0.91382572,110200.0,110190.0,0.23744]
[1756158120433,5.54158372,110200.0,110190.0,0.23744]
[1756158121484,5.54158372,110200.0,110190.0,0.0708]
[1756158121910,5.54158372,110200.0,110190.0,0.23844]
[1756158124006,5.51753408,110200.0,110190.0,0.23844]
[1756158126576,5.50051695,110200.0,110190.0,0.23844]
[1756158126777,5.51751374,110200.0,110190.0,0.23844]
[1756158127853,5.51751374,110200.0,110190.0,0.0718]
[1756158128059,5.51751374,110200.0,110190.0,0.23844]
[1756158128230,5.60438339,110200.0,110190.0,0.23844]
[1756158129069,5.5873866,110200.0,110190.0,0.23844]
[1756158129286,5.60438091,110200.0,110190.0,0.23844]
[1756158130020,5.59017602,110200.0,110190.0,0.23844]
[1756158131398,5.57318171,110200.0,110190.0,0.23844]
[1756158135456,6.03341983,110200.0,110190.0,0.23844]
[1756158135589,4.92341385,110200.0,110190.0,0.23844]
[1756158135787,5.94655018,110200.0,110190.0,0.0718]
[1756158135976,5.94655018,110200.0,110190.0,0.23836]
[1756158137638,5.94655018,110200.0,110190.0,0.0718]
[1756158137853,5.94655018,110200.0,110190.0,0.23836]
[1756158138352,5.94655018,110200.0,110150.0,0.40880193]
[1756158138353,0.5215541,110160.0,110150.0,0.06984]
[1756158138585,0.18157058,110150.0,110130.0,0.19098664]
[1756158138812,6.79159305,110140.0,110130.0,0.0004]
[1756158139032,1.29159305,110140.0,110130.0,0.16696]
[1756158139439,0.83268042,110140.0,110130.0,0.16696]
[1756158139655,6.25955007,110140.0,110130.0,0.16696]
[1756158140076,6.27376275,110140.0,110130.0,0.16996]
[1756158140287,6.29460616,110140.0,110130.0,0.16696]
[1756158140705,6.29460616,110140.0,110130.0,0.16896]
[1756158140923,6.20773651,110140.0,110130.0,0.16896]
[1756158141759,6.20773651,110140.0,110130.0,0.16996]
[1756158142234,6.02614944,110140.0,110130.0,0.35056355]
[1756158142590,0.68614944,110140.0,110130.0,0.36601257]
[1756158142828,0.67193676,110140.0,110130.0,0.36601257]
[1756158143659,0.027311,110160.0,110150.0,0.1990196]
[1756158143885,0.027311,110160.0,110150.0,0.3655796]
[1756158144207,0.6843574,110180.0,110170.0,0.18153762]
[1756158144408,5.54882514,110180.0,110170.0,0.34805762]
[1756158144632,5.20882514,110180.0,110170.0,0.34805762]
[1756158144851,5.85991849,110180.0,110170.0,0.34805762]
[1756158145050,5.88061632,110180.0,110170.0,0.34805762]
[1756158145255,5.88061632,110180.0,110170.0,0.16652]
[1756158145451,0.18153762,110170.0,110160.0,0.19899787]
[1756158145648,5.91950062,110170.0,110160.0,0.36551787]
[1756158145947,0.91950062,110170.0,110160.0,0.36551787]
[1756158146296,0.91950062,110170.0,110160.0,0.19899787]
[1756158146494,0.91950062,110170.0,110160.0,0.36555787]
[1756158146760,0.18156446,110160.0,110140.0,0.19065184]
[1756158146962,0.83166393,110150.0,110140.0,0.18157249]
[1756158147182,0.22952337,110180.0,110170.0,0.18153762]
[1756158147407,5.04800183,110180.0,110170.0,0.34809762]
[1756158147598,5.02069783,110180.0,110170.0,0.36554664]
[1756158147938,5.03490643,110180.0,110170.0,0.36554664]
[1756158149374,5.25474283,110180.0,110170.0,0.36554664]
[1756158149700,5.25474283,110180.0,110170.0,0.36550664]
[1756158149902,5.21642757,110180.0,110170.0,0.36550664]
[1756158150118,5.21642757,110180.0,110170.0,0.36650664]
[1756158150323,5.03490643,110180.0,110170.0,0.36650664]
[1756158150942,5.03490643,110180.0,110170.0,0.36750664]
[1756158151145,5.02069783,110180.0,110170.0,0.36750664]
[1756158151317,5.67179118,110180.0,110170.0,0.20098664]
[1756158151503,5.67002318,110180.0,110170.0,0.36754664]
[1756158152712,5.67002318,110180.0,110170.0,0.20098664]
[1756158152919,5.67002318,110180.0,110170.0,0.36794664]
[1756158153355,5.85154432,110180.0,110170.0,0.002]
[1756158153998,5.85154432,110180.0,110170.0,0.16888]
[1756158153999,6.21885032,110180.0,110170.0,0.16888]
[1756158154208,6.23583661,110180.0,110170.0,0.16888]
[1756158154413,6.23583661,110180.0,110170.0,0.001]
[1756158154656,6.88692996,110180.0,110170.0,0.16788]
[1756158154883,6.97379961,110180.0,110170.0,0.001]
[1756158155110,0.52153762,110170.0,110160.0,0.23664]
[1756158155336,6.82372432,110170.0,110160.0,0.1668]
[1756158155544,5.52153762,110170.0,110160.0,0.1668]
[1756158155762,6.82372432,110170.0,110160.0,0.1668]
[1756158156247,6.83793405,110170.0,110160.0,0.1668]
[1756158156433,0.18156681,110160.0,110140.0,0.19065184]
[1756158157948,0.66530372,110150.0,110140.0,0.37506086]
[1756158158374,0.66530372,110150.0,110140.0,0.37606086]
[1756158159232,0.66530372,110150.0,110140.0,0.37706086]
[1756158159890,0.8468743,110150.0,110140.0,0.37674086]
[1756158160111,0.66530372,110150.0,110140.0,0.37670086]
[1756158160325,0.8468743,110150.0,110140.0,0.37670086]
[1756158160738,0.66530372,110150.0,110140.0,0.37670086]
[1756158161935,0.01421037,110150.0,110140.0,0.37670086]
[1756158162154,0.66530372,110150.0,110140.0,0.37670086]
[1756158162613,0.65109335,110150.0,110140.0,0.37670086]
[1756158162840,0.65109335,110150.0,110140.0,0.37666086]
[1756158163052,0.83266393,110150.0,110140.0,0.35921184]
[1756158163513,0.90674457,110150.0,110140.0,0.35475343]
[1756158163785,0.90674457,110150.0,110140.0,0.16856]
[1756158164469,6.27405657,110150.0,110140.0,0.16856]
[1756158164685,6.27405657,110150.0,110140.0,0.16756]
[1756158164898,0.18158707,110140.0,110130.0,0.08768902]
[1756158165093,5.85287328,110140.0,110130.0,0.2368]
[1756158165299,0.85287328,110140.0,110130.0,0.2368]
[1756158166188,6.19287328,110140.0,110130.0,0.07024]
[1756158166419,6.19287328,110140.0,110130.0,0.2378]
[1756158166626,6.20988209,110140.0,110130.0,0.2378]
[1756158166841,6.20988209,110140.0,110130.0,0.2388]
[1756158167248,6.20988209,110140.0,110130.0,0.2378]
[1756158167650,6.20988209,110140.0,110130.0,0.07124]
[1756158167889,6.20988209,110140.0,110130.0,0.16696]
[1756158168303,6.21188209,110140.0,110130.0,0.16696]
[1756158168433,6.20988209,110140.0,110130.0,0.16696]
[1756158168631,5.55878874,110140.0,110130.0,0.16696]
[1756158170968,6.21706209,110140.0,110130.0,0.0004]
[1756158172338,5.54059588,110140.0,110130.0,0.0004]
[1756158172546,6.19372923,110140.0,110130.0,0.18413355]
[1756158172792,5.99309335,110140.0,110130.0,0.18413355]
[1756158173198,0.99309335,110140.0,110130.0,0.18413355]
[1756158173552,0.99309335,110140.0,110130.0,0.18707355]
[1756158174253,0.99109335,110140.0,110130.0,0.18807355]
[1756158174759,0.65109335,110140.0,110130.0,0.18807355]
[1756158174966,0.027315,110140.0,110130.0,0.18807355]
[1756158175178,1.17840835,110140.0,110130.0,0.18807355]
[1756158175406,5.67840835,110140.0,110130.0,0.18807355]
[1756158175608,0.67840835,110140.0,110130.0,0.18807355]
[1756158176247,0.85999542,110140.0,110130.0,0.18807355]
[1756158176873,0.67840835,110140.0,110130.0,0.18807355]
[1756158177561,0.94599331,110140.0,110130.0,0.18513355]
[1756158177788,0.84499542,110140.0,110130.0,0.18513355]
[1756158177975,0.83268042,110140.0,110130.0,0.18513355]
[1756158178854,0.65109335,110140.0,110130.0,0.18513355]
[1756158179088,0.84689352,110140.0,110130.0,0.18513355]
[1756158179318,0.66530645,110140.0,110130.0,0.18513355]
[1756158179526,0.84689352,110140.0,110130.0,0.18513355]
[1756158179727,0.84898352,110140.0,110130.0,0.18513355]
[1756158180190,0.85207352,110140.0,110130.0,0.18513355]
[1756158180436,0.85207352,110140.0,110130.0,0.18300355]
[1756158180953,5.85207352,110140.0,110130.0,0.18300355]
[1756158181156,5.93894317,110140.0,110130.0,0.18300355]
[1756158181818,5.93894317,110140.0,110130.0,0.0014]
[1756158182291,5.93894317,110140.0,110130.0,0.18300355]
[1756158182519,5.93894317,110140.0,110130.0,0.0014]
[1756158182735,5.93894317,110140.0,110130.0,0.18300355]
[1756158182942,5.85207352,110140.0,110130.0,0.18300355]
[1756158184512,5.84689352,110140.0,110130.0,0.18811355]
[1756158184722,5.66530645,110140.0,110130.0,0.18811355]
[1756158184976,5.66530645,110140.0,110130.0,0.18500355]
[1756158185441,5.66739645,110140.0,110130.0,0.18500355]
[1756158185634,5.66530645,110140.0,110130.0,0.18500355]
[1756158185863,0.66530645,110140.0,110130.0,0.18500355]
[1756158186099,0.66530645,110140.0,110130.0,0.18811355]
[1756158186453,0.66530645,110140.0,110130.0,0.18500355]
[1756158187435,0.66530645,110140.0,110130.0,0.18811355]
[1756158187945,0.66530645,110140.0,110130.0,0.18500355]
[1756158188692,0.67048645,110140.0,110130.0,0.18300355]
[1756158188896,0.66530645,110140.0,110130.0,0.18500355]
[1756158190127,5.66530645,110140.0,110130.0,0.18811355]
[1756158190324,0.66530645,110140.0,110130.0,0.18811355]
[1756158190541,0.66739645,110140.0,110130.0,0.18811355]
[1756158190747,0.66530645,110140.0,110130.0,0.18500355]
[1756158191074,0.66530645,110140.0,110130.0,0.18811355]
[1756158191891,0.66530645,110140.0,110130.0,0.18500355]
[1756158193067,0.66530645,110140.0,110130.0,0.18811355]
[1756158193270,0.66530645,110140.0,110130.0,0.18500355]
[1756158193482,0.65109335,110140.0,110130.0,0.35459355]
[1756158194496,0.1846616,110150.0,110140.0,0.18158707]
[1756158194844,5.2037747,110150.0,110140.0,0.18158707]
[1756158195286,5.1985947,110150.0,110140.0,0.18669707]
[1756158195491,5.0170231,110150.0,110140.0,0.18669707]
[1756158195700,5.66811645,110150.0,110140.0,0.18358707]
[1756158196245,5.67329645,110150.0,110140.0,0.18358707]
[1756158196451,5.67020645,110150.0,110140.0,0.18358707]
[1756158196651,5.83784393,110150.0,110140.0,0.18158707]
[1756158196854,5.85486416,110150.0,110140.0,0.18158707]
[1756158197053,5.85686416,110150.0,110140.0,0.16158707]
[1756158197278,5.87107622,110150.0,110140.0,0.16358707]
[1756158197476,5.77540557,110150.0,110140.0,0.16158707]
[1756158197697,5.77231557,110150.0,110140.0,0.16358707]
[1756158198075,5.59383499,110150.0,110140.0,0.16358707]
[1756158198275,5.59383499,110150.0,110140.0,0.16158707]
[1756158198536,5.59183499,110150.0,110140.0,0.16158707]
[1756158198856,5.57481476,110150.0,110140.0,0.16158707]
[1756158199314,5.33208276,110150.0,110140.0,0.16158707]
[1756158199520,5.38208276,110150.0,110140.0,0.16158707]
[1756158199725,0.57481476,110150.0,110140.0,0.16158707]
[1756158199923,0.57172476,110150.0,110140.0,0.16358707]
[1756158200372,0.57481476,110150.0,110140.0,0.16158707]
[1756158201014,0.56963476,110150.0,110140.0,0.16358707]
[1756158201841,0.56947856,110150.0,110140.0,0.16358707]
[1756158203012,0.01405586,110150.0,110140.0,0.16669707]
[1756158203228,0.56947856,110150.0,110140.0,0.16358707]
[1756158204235,0.56947856,110150.0,110140.0,0.16669707]
[1756158204646,0.5554227,110150.0,110140.0,0.16669707]
[1756158205054,0.5554227,110150.0,110140.0,0.43539707]
[1756158205248,0.5554227,110160.0,110150.0,0.1906203]
[1756158205522,0.5554227,110160.0,110150.0,0.3590803]
[1756158205748,0.5554227,110160.0,110150.0,0.3621903]
[1756158206593,0.36201983,110180.0,110170.0,0.18153762]
[1756158206813,0.36201983,110180.0,110170.0,0.34793762]
[1756158206814,5.75223042,110180.0,110170.0,0.34793762]
[1756158207053,5.76643966,110180.0,110170.0,0.34793762]
[1756158207253,5.42643966,110180.0,110170.0,0.34793762]
[1756158208049,5.42743951,110180.0,110170.0,0.34793762]
[1756158208283,5.41042625,110180.0,110170.0,0.34793762]
[1756158208490,5.41042625,110180.0,110170.0,0.34999762]
[1756158208724,4.84340707,110180.0,110170.0,0.34999762]
[1756158208852,5.39682977,110180.0,110170.0,0.34999762]
[1756158209055,0.58956177,110180.0,110170.0,0.34999762]
[1756158209291,0.03413907,110180.0,110170.0,0.35310762]
[1756158209507,0.58956177,110180.0,110170.0,0.42294762]
[1756158209716,0.59156177,110180.0,110170.0,0.42294762]
[1756158210346,0.02192983,110180.0,110170.0,0.42294762]
[1756158210561,0.57435253,110180.0,110170.0,0.41983762]
[1756158210772,0.02192983,110180.0,110170.0,0.42294762]
[1756158210972,0.57535253,110180.0,110170.0,0.42294762]
[1756158211455,0.01992983,110180.0,110170.0,0.42294762]
[1756158211799,0.57435253,110180.0,110170.0,0.42294762]
[1756158212182,0.57261002,110200.0,110190.0,0.18150467]
[1756158212402,5.96279832,110200.0,110190.0,0.34782467]
[1756158212822,0.60317147,110220.0,110210.0,0.18147173]
[1756158212823,0.00298,110220.0,110210.0,0.18147173]
[1756158213020,1.09160443,110220.0,110210.0,0.34985173]
[1756158213408,5.40239101,110220.0,110210.0,0.34985173]
[1756158213618,0.59512301,110220.0,110210.0,0.34685173]
[1756158213826,0.61344692,110220.0,110210.0,0.34685173]
[1756158214036,0.61544692,110220.0,110210.0,0.41669173]
[1756158214247,0.60144975,110220.0,110210.0,0.41980173]
[1756158214468,0.02232391,110220.0,110210.0,0.41980173]
[1756158214704,0.01420145,110220.0,110210.0,0.41980173]
[1756158214936,0.5554227,110230.0,110220.0,0.18145527]
[1756158215155,0.5554227,110230.0,110220.0,0.18351527]
[1756158215401,0.00298,110250.0,110240.0,0.17238235]
[1756158215607,4.812248,110250.0,110240.0,0.33866235]
[1756158215813,4.86359505,110250.0,110240.0,0.33866235]
[1756158216053,4.86359505,110250.0,110240.0,0.17238235]
[1756158216289,4.86359505,110250.0,110240.0,0.33866235]
[1756158216735,5.54594775,110250.0,110240.0,0.17238235]
[1756158216954,5.54594775,110250.0,110240.0,0.33866235]
[1756158217179,5.72935364,110250.0,110240.0,0.17238235]
[1756158217368,5.72935364,110250.0,110240.0,0.33866235]
[1756158217622,5.72933665,110250.0,110240.0,0.33866235]
[1756158217840,5.72733665,110250.0,110240.0,0.33866235]
[1756158218264,5.72833665,110250.0,110240.0,0.33866235]
[1756158220875,5.72828231,110250.0,110240.0,0.33866235]
[1756158221972,5.67700659,110250.0,110240.0,0.33866235]
[1756158222809,5.67644459,110250.0,110240.0,0.33866235]
[1756158224321,5.4950387,110250.0,110240.0,0.33866235]
[1756158224711,5.4926207,110250.0,110240.0,0.34072235]
[1756158225096,5.67700659,110250.0,110230.0,0.18142417]
[1756158225298,0.22010196,110250.0,110240.0,0.34758235]
[1756158225500,5.02736996,110250.0,110240.0,0.34758235]
[1756158226265,5.01317091,110250.0,110240.0,0.34758235]
[1756158226468,5.66280754,110250.0,110240.0,0.34758235]
[1756158226681,5.66180754,110250.0,110240.0,0.34758235]
[1756158226907,5.74867719,110250.0,110240.0,0.34758235]
[1756158227111,5.74967719,110250.0,110240.0,0.34758235]
[1756158227361,5.01317091,110250.0,110240.0,0.34758235]
[1756158227569,5.66280754,110250.0,110240.0,0.34758235]
[1756158227773,0.85553954,110250.0,110240.0,0.34758235]
[1756158228612,0.85453954,110250.0,110240.0,0.34758235]
[1756158228821,0.85553954,110250.0,110240.0,0.34758235]
[1756158229222,0.95660881,110250.0,110240.0,0.34758235]
[1756158230182,0.86973916,110250.0,110240.0,0.34758235]
[1756158231811,0.86973916,110250.0,110240.0,0.34964235]
[1756158232028,0.86475916,110250.0,110240.0,0.34964235]
[1756158232338,0.87319778,110250.0,110240.0,0.35275235]
[1756158232489,0.87519778,110250.0,110240.0,0.34758235]
[1756158232710,0.96504743,110250.0,110240.0,0.34758235]
[1756158233144,0.96504743,110250.0,110240.0,0.34754235]
[1756158233302,0.69677189,110250.0,110240.0,0.34754235]
[1756158234018,0.69179189,110250.0,110240.0,0.34960235]
[1756158234221,0.69379189,110250.0,110240.0,0.34960235]
[1756158234471,0.68335327,110250.0,110240.0,0.34960235]
[1756158234698,0.68535327,110250.0,110240.0,0.34960235]
[1756158235555,0.57584618,110250.0,110240.0,0.34960235]
[1756158235951,0.59004467,110250.0,110240.0,0.34960235]
[1756158236296,0.59849636,110250.0,110240.0,0.34960235]
[1756158238476,0.0471972,110250.0,110240.0,0.34960235]
[1756158238648,1.12881136,110250.0,110240.0,0.34960235]
[1756158238850,5.43607936,110250.0,110240.0,0.34754235]
[1756158239086,0.62881136,110250.0,110240.0,0.34968235]
[1756158240055,0.62882252,110250.0,110240.0,0.34968235]
[1756158240910,0.62592252,110250.0,110240.0,0.34968235]
[1756158241126,0.62379252,110250.0,110240.0,0.34968235]
[1756158241304,0.62379252,110250.0,110240.0,0.35281235]
[1756158241702,0.43233866,110250.0,110240.0,0.35281235]
[1756158241887,0.43233866,110250.0,110240.0,0.34968235]
[1756158242514,0.43233866,110250.0,110240.0,0.18356235]
[1756158242729,0.43446866,110250.0,110240.0,0.34746235]
[1756158242933,0.43446866,110250.0,110240.0,0.18142235]
[1756158242934,5.24476666,110250.0,110240.0,0.18142235]
[1756158243140,5.44313376,110250.0,110240.0,0.34742235]
[1756158243348,5.26172787,110250.0,110240.0,0.18142235]
[1756158243576,5.44313376,110250.0,110240.0,0.18142235]
[1756158243787,5.26172787,110250.0,110240.0,0.34742235]
[1756158244617,0.46770449,110250.0,110240.0,0.34956235]
[1756158245260,0.46770449,110250.0,110240.0,0.34052235]
[1756158246060,0.48190405,110250.0,110240.0,0.34052235]
[1756158246273,0.48403405,110250.0,110240.0,0.34052235]
[1756158246888,0.48706405,110250.0,110240.0,0.34052235]
[1756158247098,0.48706405,110250.0,110240.0,0.33838235]
[1756158247099,0.6448024,110250.0,110240.0,0.33838235]
[1756158247511,0.6448024,110250.0,110240.0,0.17238235]
[1756158247721,0.6448024,110250.0,110240.0,0.33834235]
[1756158248381,0.64486437,110250.0,110240.0,0.33834235]
[1756158249008,0.64486478,110250.0,110240.0,0.33834235]
[1756158249208,0.6448656,110250.0,110240.0,0.33834235]
[1756158249565,0.6448656,110250.0,110240.0,0.34048235]
[1756158250191,0.08750644,110250.0,110240.0,0.34048235]
[1756158250388,0.65042098,110250.0,110240.0,0.34048235]
[1756158250554,0.6448656,110250.0,110240.0,0.34048235]
[1756158250754,0.6448656,110250.0,110240.0,0.15256687]
[1756158250957,0.6448656,110250.0,110240.0,0.31848687]
[1756158251376,0.67088671,110250.0,110240.0,0.31848687]
[1756158251589,0.67093609,110250.0,110240.0,0.31848687]
[1756158252211,0.66790609,110250.0,110240.0,0.31848687]
[1756158252488,0.67093609,110250.0,110240.0,0.31848687]
[1756158252693,0.66790609,110250.0,110240.0,0.31848687]
[1756158252903,0.66151566,110250.0,110240.0,0.31848687]
[1756158253105,0.66790588,110250.0,110240.0,0.31848687]
[1756158253504,0.67093588,110250.0,110240.0,0.31848687]
[1756158254214,0.67093597,110250.0,110240.0,0.31848687]
[1756158255198,0.67093597,110250.0,110240.0,0.31634687]
[1756158255403,0.67093597,110250.0,110240.0,0.31848687]
[1756158256230,0.65673641,110250.0,110240.0,0.31848687]
[1756158256815,0.65673641,110250.0,110240.0,0.15256687]
[1756158257031,0.65673641,110250.0,110240.0,0.31844687]
[1756158257786,0.64824066,110250.0,110240.0,0.31844687]
[1756158258030,0.65037111,110250.0,110240.0,0.31840687]
[1756158258543,0.64185059,110250.0,110240.0,0.31840687]
[1756158259449,0.63641809,110250.0,110240.0,0.31840687]
[1756158259668,0.63338809,110250.0,110240.0,0.31840687]
[1756158260444,0.63641809,110250.0,110240.0,0.31840687]
[1756158260646,0.63338809,110250.0,110240.0,0.31840687]
[1756158260848,0.63125809,110250.0,110240.0,0.32153687]
[1756158261045,0.63338809,110250.0,110240.0,0.31836687]
[1756158262666,0.07905893,110250.0,110240.0,0.31836687]
[1756158262866,0.63125809,110250.0,110240.0,0.31836687]
[1756158263088,1.13338809,110250.0,110240.0,0.31836687]
[1756158263291,0.63338809,110250.0,110240.0,0.31836687]
[1756158263702,0.63125809,110250.0,110240.0,0.32149687]
[1756158263910,0.63125809,110250.0,110240.0,0.15569687]
[1756158264146,0.63125809,110250.0,110240.0,0.31832687]
[1756158264535,0.63125809,110250.0,110240.0,0.32145687]
[1756158264743,0.07692893,110250.0,110240.0,0.32145687]
[1756158264954,0.06273066,110250.0,110240.0,0.32145687]
[1756158265374,0.04568962,110250.0,110240.0,0.32145687]
[1756158266272,0.027285,110250.0,110240.0,0.32145687]
[1756158266502,0.0002,110260.0,110250.0,0.18140589]
[1756158266698,1.11494655,110260.0,110250.0,0.18335589]
[1756158266921,5.40610493,110260.0,110250.0,0.18646589]
[1756158267141,0.6130334,110260.0,110250.0,0.18646589]
[1756158267358,0.59600663,110260.0,110250.0,0.18646589]
[1756158268069,0.04167747,110260.0,110250.0,0.18646589]
[1756158268274,0.01439647,110260.0,110250.0,0.18646589]
[1756158268903,0.01539647,110260.0,110250.0,0.18646589]
[1756158269125,0.01439647,110260.0,110250.0,0.18646589]
[1756158269537,0.01439647,110260.0,110250.0,0.18846589]
[1756158269751,0.06062522,110270.0,110260.0,0.18138944]
[1756158269954,0.03334622,110270.0,110260.0,0.42192944]
[1756158270564,0.0002,110270.0,110260.0,0.42192944]
[1756158271720,1e-08,110270.0,110260.0,0.58134694]
[1756158272332,1e-08,110270.0,110260.0,1.2856761]
[1756158272944,1e-08,110270.0,110260.0,1.3856761]
[1756158273359,1e-08,110270.0,110260.0,1.3886761]
[1756158273741,1e-08,110270.0,110260.0,1.7306761]
[1756158273946,1e-08,110270.0,110260.0,1.7579431]
[1756158274208,1e-08,110270.0,110260.0,1.7559431]
[1756158274370,1e-08,110300.0,110290.0,0.2813401]
[1756158274574,1e-08,110300.0,110290.0,0.82361485]
[1756158274786,1e-08,110300.0,110290.0,0.82672485]
[1756158275868,1e-08,110300.0,110290.0,0.85957003]
[1756158276271,1e-08,110300.0,110290.0,1.01257003]
[1756158276421,1e-08,110300.0,110290.0,1.56689919]
[1756158276619,1e-08,110300.0,110290.0,1.56989919]
[1756158276854,1e-08,110300.0,110290.0,1.59716319]
[1756158278071,1e-08,110300.0,110290.0,1.44716319]
[1756158278275,1e-08,110300.0,110290.0,1.59716319]
[1756158279700,1e-08,110300.0,110290.0,1.59704319]
[1756158280102,1e-08,110300.0,110290.0,1.99704319]
[1756158281277,1e-08,110300.0,110290.0,1.99700319]
[1756158282331,1e-08,110300.0,110290.0,2.33700319]
[1756158283801,1e-08,110300.0,110290.0,2.37860524]
[1756158284671,1e-08,110300.0,110290.0,2.37852524]
[1756158284877,1e-08,110300.0,110290.0,1.82419608]
[1756158285078,1e-08,110300.0,110290.0,1.65583608]
[1756158285204,1e-08,110300.0,110290.0,1.66183608]
[1756158285412,1e-08,110300.0,110290.0,1.82719608]
[1756158285618,1e-08,110300.0,110290.0,1.66183608]
[1756158285845,0.00210001,110300.0,110290.0,0.6358809]
[1756158286042,0.00517001,110300.0,110290.0,0.7689869]
[1756158286456,0.00517001,110300.0,110290.0,0.7729869]
[1756158286893,0.00517001,110300.0,110290.0,0.68610215]
[1756158287122,0.00517001,110300.0,110290.0,0.68210215]
[1756158287305,0.00517001,110300.0,110290.0,0.51678215]
[1756158287478,0.00517001,110300.0,110290.0,0.68606215]
[1756158287855,0.00517001,110300.0,110290.0,0.67606215]
[1756158288057,0.00517001,110300.0,110290.0,0.68106215]
[1756158288257,0.00517001,110300.0,110290.0,0.51578215]
[1756158288474,0.00517001,110300.0,110290.0,0.66318892]
[1756158288717,0.00517001,110300.0,110290.0,0.50190892]
[1756158288924,0.00517001,110300.0,110290.0,0.66718892]
[1756158289298,0.00517001,110300.0,110290.0,0.67018892]
[1756158289919,0.00517001,110300.0,110290.0,0.50490892]
[1756158290121,0.55949917,110300.0,110290.0,0.41046687]
[1756158290352,0.66085282,110300.0,110290.0,0.41046687]
[1756158290632,0.67504344,110300.0,110290.0,0.41046687]
[1756158290834,0.60096279,110300.0,110290.0,0.41046687]
[1756158291173,0.60096279,110300.0,110290.0,0.40746687]
[1756158291575,0.60096279,110300.0,110290.0,0.40346687]
[1756158291787,5.40823079,110300.0,110290.0,0.40446687]
[1756158292217,5.40823079,110300.0,110290.0,0.40442687]